fUSD/lending_fUSD_20240728
["ID","MTS","AMOUNT","RATE_DAILY","PERIOD"]
[333465521,1722160245051,-500.0,0.00010998,2]
[333465522,1722160245061,-506.41430713,0.00010998,2]
[333465523,1722160245071,-509.1315072,0.00010998,2]
[333465524,1722160245081,-559.51292248,0.00010998,2]
[333465525,1722160245091,-505.87990587,0.00010998,2]
[333465526,1722160245102,-508.07512992,0.00010998,2]
[333465527,1722160245112,-511.19999214,0.00010998,2]
[333465528,1722160245122,-516.38166736,0.00010998,2]
[333465529,1722160245133,-514.72621159,0.00010998,2]
[333465530,1722160245144,-527.77668587,0.00010998,2]
[333465531,1722160245155,-506.47726592,0.00010998,2]
[333465532,1722160245165,-510.25290728,0.00010998,2]
[333465533,1722160245176,-514.6893726,0.00010998,2]
[333465534,1722160245186,-506.75580635,0.00010998,2]
[333465535,1722160245196,-508.51343628,0.00010998,2]
[333465536,1722160245206,-250.69213845,0.00010998,2]
[333465537,1722160245216,-505.51463592,0.00010998,2]
[333465538,1722160245226,-500.0,0.00010998,2]
[333465539,1722160245235,-641.67786556,0.00010998,2]
[333465540,1722160245245,-508.22334717,0.00010998,2]
[333465541,1722160245255,-500.0,0.00010998,2]
[333465542,1722160245264,-292.906086,0.00010998,2]
[333465543,1722160245273,-500.0,0.00010998,2]
[333465544,1722160245283,-508.41141051,0.00010998,2]
[333465545,1722160245297,-500.0,0.00010998,2]
[333465546,1722160245307,-500.0,0.00010998,2]
[333465547,1722160245316,-500.0,0.00010998,2]
[333465548,1722160245326,-581.92113787,0.00010998,2]
[333465549,1722160245335,-500.0,0.00010998,2]
[333465550,1722160245345,-500.0,0.00010998,2]
[333465551,1722160245358,-500.0,0.00010998,2]
[333465552,1722160245367,-508.12174435,0.00010998,2]
[333465553,1722160245377,-529.10287549,0.00010998,2]
[333465554,1722160245387,-517.48153571,0.00010998,2]
[333465555,1722160245397,-507.82262385,0.00010998,2]
[333465556,1722160245407,-500.0,0.00010998,2]
[333465557,1722160245416,-500.0,0.00010998,2]
[333465558,1722160245426,-640.64760065,0.00010998,2]
[333465559,1722160245437,-541.02980238,0.00010998,2]
[333465560,1722160245447,-500.0,0.00010998,2]
[333465561,1722160245457,-500.0,0.00010998,2]
[333465562,1722160245467,-500.0,0.00010998,2]
[333465563,1722160245476,-512.95716739,0.00010998,2]
[333465564,1722160245486,-500.0,0.00010998,2]
[333465565,1722160245496,-528.89205331,0.00010998,2]
[333465566,1722160245505,-525.48217829,0.00010998,2]
[333465567,1722160245515,-508.55371028,0.00010998,2]
[333465568,1722160245524,-506.3423787,0.00010998,2]
[333465569,1722160245533,-509.31226449,0.00010998,2]
[333465570,1722160245548,-530.20061991,0.00010998,2]
[333465571,1722160245558,-518.91418821,0.00010998,2]
[333465572,1722160245566,-518.66610883,0.00010998,2]
[333465573,1722160245576,-527.5765451,0.00010998,2]
[333465574,1722160245588,-505.56032863,0.00010998,2]
[333465575,1722160245597,-500.0,0.00010998,2]
[333465576,1722160245606,-500.0,0.00010998,2]
[333465577,1722160245617,-500.0,0.00010998,2]
[333465578,1722160245627,-509.45180678,0.00010998,2]
[333465579,1722160245637,-500.0,0.00010998,2]
[333465580,1722160245646,-510.40943006,0.00010998,2]
[333465581,1722160245656,-508.68612137,0.00010998,2]
[333465582,1722160245667,-514.03213986,0.00010998,2]
[333465583,1722160245678,-507.74715736,0.00010998,2]
[333465584,1722160245688,-282.89157707,0.00010998,2]
[333465585,1722160245699,-505.93462439,0.00010998,2]
[333465586,1722160245709,-508.80189016,0.00010998,2]
[333465587,1722160245718,-510.63039489,0.00010998,2]
[333465588,1722160245727,-506.66462,0.00010998,2]
[333465589,1722160245736,-522.06055725,0.00010998,2]
[333465590,1722160245746,-546.22952853,0.00010998,2]
[333465591,1722160245755,-521.71932734,0.00010998,2]
[333465592,1722160245765,-512.73911036,0.00010998,2]
[333465593,1722160245774,-505.30798777,0.00010998,2]
[333465594,1722160245784,-393.73652363,0.00010998,2]
[333465595,1722160245795,-511.17585923,0.00010998,2]
[333465596,1722160245805,-506.58400206,0.00010998,2]
[333465597,1722160245814,-512.65396772,0.00010998,2]
[333465598,1722160245824,-523.8046092,0.00010998,2]
[333465599,1722160245833,-509.99660144,0.00010998,2]
[333465600,1722160245842,-509.1805902,0.00010998,2]
[333465601,1722160245851,-511.01135469,0.00010998,2]
[333465602,1722160245861,-515.91789577,0.00010998,2]
[333465603,1722160245870,-515.64535822,0.00010998,2]
[333465604,1722160245880,-584.64678059,0.00010998,2]
[333465606,1722160245889,-429.2435724,0.00010998,2]
[333465607,1722160245898,-532.85684534,0.00010998,2]
[333465609,1722160245908,-519.42325571,0.00010998,2]
[333465610,1722160245917,-642.56730924,0.00010998,2]
[333465612,1722160245927,-504.90229166,0.00010998,2]
[333465614,1722160245937,-506.97511285,0.00010998,2]
[333465615,1722160245947,-535.35,0.00010998,2]
[333465617,1722160245956,-500.0,0.00010998,2]
[333465619,1722160245966,-4504.028342,0.00010998,2]
[333465621,1722160245975,-1143.5873993,0.00010998,2]
[333465623,1722160245985,-27246.98504278,0.00010998,2]
[333465624,1722160246180,-7056.8,0.00010998,2]
[333465628,1722160246210,-1384.49588902,0.00010998,2]
[333465630,1722160246219,-799.260208,0.00010998,2]
[333465632,1722160246228,-831.46,0.00010999,2]
[333465634,1722160246238,-831.46,0.00010999,2]
[333465636,1722160246247,-831.46,0.00010999,2]
[333465638,1722160246256,-831.46,0.00010999,2]
[333465640,1722160246265,-831.46,0.00010999,2]
[333465642,1722160246275,-831.46,0.00010999,2]
[333465643,1722160246284,-831.46,0.00010999,2]
[333465644,1722160246294,-831.46,0.00010999,2]
[333465645,1722160246303,-831.46,0.00010999,2]
[333465646,1722160246313,-831.46,0.00010999,2]
[333465647,1722160246322,-831.46,0.00010999,2]
[333465648,1722160246331,-798.06523057,0.00010999,2]
[333465649,1722160246399,-33.39476943,0.00010999,2]
[333465650,1722160246408,-831.46,0.00010999,2]
[333465651,1722160246418,-831.46,0.00010999,2]
[333465652,1722160246431,-831.46,0.00010999,2]
[333465653,1722160246441,-831.46,0.00010999,2]
[333465654,1722160246451,-831.46,0.00010999,2]
[333465655,1722160246460,-831.46,0.00010999,2]
[333465656,1722160246470,-831.46,0.00010999,2]
[333465657,1722160246482,-831.46,0.00010999,2]
[333465658,1722160246492,-74.12523057,0.00010999,2]
[333465659,1722160246509,-635.84286283,0.00010999,2]
[333465711,1722161432412,-611.0,8.218e-05,2]
[333465712,1722161432421,-615.89,8.219e-05,2]
[333465713,1722161432431,-246.64970336,9.999e-05,2]
[333465714,1722161432442,-53.35029664,9.999e-05,2]
[333465715,1722161432452,-3040.8681567,0.0001,2]
[333465716,1722161432470,-1967.1318433,0.0001,2]
[333465717,1722161432479,-904.65331346,0.0001,2]
[333465718,1722161432490,-1533.16988502,0.0001,2]
[333465719,1722161432503,-562.17680152,0.0001,2]
[333465720,1722161432512,-264.08,0.0001,2]
[333465721,1722161432521,-735.92,0.00010005,2]
[333465722,1722161432531,-250.0,0.0001003,2]
[333465723,1722161432540,-370.35423,0.00010446,2]
[333465724,1722161432550,-615.89,0.00010478,2]
[333465725,1722161432559,-8009.65956361,0.000105,2]
[333465726,1722161432571,-1164.91928694,0.000105,2]
[333465727,1722161432581,-2101.31285773,0.000105,2]
[333465729,1722161434857,-676.1,0.000105,2]
[333465730,1722161434868,-853.41736973,0.000105,2]
[333465731,1722161434878,-141.62715214,0.0001078,2]
[333465732,1722161434889,-142.38686246,0.0001078,2]
[333465733,1722161434899,-624.31361718,0.0001089,2]
[333465734,1722161434914,-732.10144154,0.0001089,2]
[333465735,1722161434926,-752.35031756,0.0001089,2]
[333465736,1722161434960,-898.17683684,0.0001089,2]
[333465737,1722161435011,-122137.05778688,0.0001089,2]
[333465738,1722161435021,-5077.4187,0.000109,2]
[333465739,1722161435031,-181.4307852,0.000109,2]
[333465740,1722161435040,-7305.2765,0.000109,2]
[333465741,1722161435050,-1519.66149937,0.000109,2]
[333465742,1722161435059,-181.52425507,0.000109,2]
[333465743,1722161435068,-219.42,0.00010904,3]
[333465744,1722161435077,-500.0,0.00010958,2]
[333465745,1722161435088,-200.0,0.00010959,2]
[333465746,1722161435097,-1197.61262005,0.0001098,2]
[333465747,1722161435106,-225.95,0.0001099,2]
[333465748,1722161435115,-225.95,0.0001099,2]
[333465749,1722161435124,-225.95,0.0001099,2]
[333465750,1722161435134,-225.95,0.0001099,2]
[333465751,1722161435143,-225.95,0.0001099,2]
[333465753,1722161435152,-225.95,0.0001099,2]
[333465755,1722161435161,-225.95,0.0001099,2]
[333465757,1722161435170,-225.95,0.0001099,2]
[333465759,1722161435179,-225.95,0.0001099,2]
[333465761,1722161435189,-225.95,0.0001099,2]
[333465763,1722161435198,-225.95,0.0001099,2]
[333465764,1722161435208,-225.95,0.0001099,2]
[333465765,1722161435217,-225.95,0.0001099,2]
[333465766,1722161435226,-225.95,0.0001099,2]
[333465767,1722161435236,-225.95,0.0001099,2]
[333465768,1722161435245,-225.95,0.0001099,2]
[333465769,1722161435254,-225.95,0.0001099,2]
[333465771,1722161435264,-225.95,0.0001099,2]
[333465772,1722161435273,-225.95,0.0001099,2]
[333465773,1722161435282,-225.95,0.0001099,2]
[333465774,1722161435291,-225.95,0.0001099,2]
[333465775,1722161435301,-225.95,0.0001099,2]
[333465776,1722161435311,-225.95,0.0001099,2]
[333465777,1722161435320,-225.95,0.0001099,2]
[333465778,1722161435330,-225.95,0.0001099,2]
[333465779,1722161435340,-225.95,0.0001099,2]
[333465780,1722161435349,-225.95,0.0001099,2]
[333465781,1722161435358,-225.95,0.0001099,2]
[333465782,1722161435367,-225.95,0.0001099,2]
[333465783,1722161435377,-225.95,0.0001099,2]
[333465784,1722161435386,-225.95,0.0001099,2]
[333465785,1722161435395,-225.95,0.0001099,2]
[333465786,1722161435406,-225.95,0.0001099,2]
[333465787,1722161435416,-225.95,0.0001099,2]
[333465788,1722161435425,-225.95,0.0001099,2]
[333465789,1722161435435,-225.95,0.0001099,2]
[333465790,1722161435444,-225.95,0.0001099,2]
[333465791,1722161435454,-225.95,0.0001099,2]
[333465792,1722161435463,-225.95,0.0001099,2]
[333465793,1722161435474,-225.95,0.0001099,2]
[333465794,1722161435483,-225.95,0.0001099,2]
[333465795,1722161435492,-225.95,0.0001099,2]
[333465796,1722161435502,-225.95,0.0001099,2]
[333465797,1722161435511,-225.95,0.0001099,2]
[333465798,1722161435520,-225.95,0.0001099,2]
[333465799,1722161435529,-225.95,0.0001099,2]
[333465800,1722161435539,-225.95,0.0001099,2]
[333465801,1722161435548,-225.95,0.0001099,2]
[333465802,1722161435558,-225.95,0.0001099,2]
[333465803,1722161435568,-225.95,0.0001099,2]
[333465804,1722161435577,-225.95,0.0001099,2]
[333465805,1722161435586,-225.95,0.0001099,2]
[333465806,1722161435594,-225.95,0.0001099,2]
[333465807,1722161435603,-225.95,0.0001099,2]
[333465808,1722161435612,-225.95,0.0001099,2]
[333465809,1722161435622,-225.95,0.0001099,2]
[333465810,1722161435632,-225.95,0.0001099,2]
[333465811,1722161435642,-225.95,0.0001099,2]
[333465812,1722161435651,-225.95,0.0001099,2]
[333465813,1722161435660,-225.95,0.0001099,2]
[333465814,1722161435669,-225.95,0.0001099,2]
[333465815,1722161435678,-225.95,0.0001099,2]
[333465816,1722161435687,-225.95,0.0001099,2]
[333465817,1722161435696,-225.95,0.0001099,2]
[333465818,1722161435705,-225.95,0.0001099,2]
[333465819,1722161435714,-225.95,0.0001099,2]
[333465820,1722161435726,-225.95,0.0001099,2]
[333465821,1722161435737,-225.95,0.0001099,2]
[333465822,1722161435747,-225.95,0.0001099,2]
[333465823,1722161435756,-225.95,0.0001099,2]
[333465824,1722161435765,-225.95,0.0001099,2]
[333465825,1722161435774,-225.95,0.0001099,2]
[333465826,1722161435783,-225.95,0.0001099,2]
[333465827,1722161435792,-225.95,0.0001099,2]
[333465828,1722161435801,-225.95,0.0001099,2]
[333465829,1722161435810,-225.95,0.0001099,2]
[333465830,1722161435819,-225.95,0.0001099,2]
[333465831,1722161435828,-225.95,0.0001099,2]
[333465832,1722161435837,-225.95,0.0001099,2]
[333465833,1722161435847,-225.95,0.0001099,2]
[333465834,1722161435857,-225.95,0.0001099,2]
[333465835,1722161435866,-225.95,0.0001099,2]
[333465836,1722161435875,-225.95,0.0001099,2]
[333465837,1722161435885,-225.95,0.0001099,2]
[333465838,1722161435894,-225.95,0.0001099,2]
[333465839,1722161435903,-225.95,0.0001099,2]
[333465840,1722161435912,-225.95,0.0001099,2]
[333465841,1722161435922,-225.95,0.0001099,2]
[333465842,1722161435936,-225.95,0.0001099,2]
[333465843,1722161435945,-225.95,0.0001099,2]
[333465844,1722161435954,-395.747,0.00010996,2]
[333465845,1722161435966,-1315.489,0.00010996,2]
[333465846,1722161435977,-1361.627,0.00010996,2]
[333465847,1722161435987,-310.41934052,0.00010998,2]
[333465848,1722161435996,-3816.5190586,0.00010998,2]
[333465849,1722161436007,-12510.9421841,0.00010998,2]
[333465850,1722161436016,-1502.3079586,0.00010998,2]
[333465851,1722161436026,-30240.7076512,0.00010998,2]
[333465852,1722161436035,-1646.2851381,0.00010998,2]
[333465853,1722161436045,-121.4919066,0.00010999,2]
[333465854,1722161436054,-831.46,0.00010999,2]
[333465855,1722161436063,-831.46,0.00010999,2]
[333465856,1722161436072,-831.68142471,0.00010999,2]
[333465857,1722161436082,-311.9537965,0.00010999,2]
[333465858,1722161436090,-440.84649604,0.00010999,2]
[333465859,1722161436100,-645.82985514,0.00010999,2]
[333465860,1722161436109,-643.15,0.00010999,2]
[333465861,1722161436118,-500.0,0.00010999,2]
[333465862,1722161436127,-340.03568352,0.00010999,2]
[333465863,1722161436137,-500.0,0.00010999,2]
[333465864,1722161436146,-482.99915459,0.00010999,2]
[333465865,1722161436156,-500.0,0.00010999,2]
[333465866,1722161436165,-517.46072831,0.00010999,2]
[333465867,1722161436174,-268.01444964,0.00010999,2]
[333465868,1722161436183,-373.8598515,0.00010999,2]
[333465869,1722161436192,-500.0,0.00010999,2]
[333465870,1722161436202,-500.0,0.00010999,2]
[333465871,1722161436211,-500.0,0.00010999,2]
[333465872,1722161436221,-500.0,0.00010999,2]
[333465873,1722161436230,-500.0,0.00010999,2]
[333465874,1722161436240,-500.0,0.00010999,2]
[333465875,1722161436250,-500.0,0.00010999,2]
[333465876,1722161436259,-500.0,0.00010999,2]
[333465877,1722161436269,-554.76724818,0.00010999,2]
[333465878,1722161436278,-433.96,0.00010999,2]
[333465879,1722161436288,-269.03585796,0.00010999,2]
[333465880,1722161436297,-340.49763434,0.00010999,2]
[333465881,1722161436307,-358.25622889,0.00010999,2]
[333465882,1722161436316,-512.19065863,0.00010999,2]
[333465883,1722161436326,-500.0,0.00010999,2]
[333465884,1722161436335,-268.15397206,0.00010999,2]
[333465885,1722161436344,-500.0,0.00010999,2]
[333465886,1722161436353,-299.04821886,0.00010999,2]
[333465887,1722161436363,-500.0,0.00010999,2]
[333465888,1722161436374,-500.0,0.00010999,2]
[333465889,1722161436384,-500.0,0.00010999,2]
[333465890,1722161436395,-500.0,0.00010999,2]
[333465891,1722161436405,-500.0,0.00010999,2]
[333465892,1722161436416,-500.0,0.00010999,2]
[333465893,1722161436426,-500.0,0.00010999,2]
[333465894,1722161436436,-500.0,0.00010999,2]
[333465895,1722161436445,-500.0,0.00010999,2]
[333465896,1722161436455,-309.08088242,0.00010999,2]
[333465897,1722161436464,-166.77752623,0.00010999,2]
[333465898,1722161436474,-509.1276066,0.00010999,2]
[333465899,1722161436495,-573.31858834,0.00010999,2]
[333465900,1722161436505,-1036.13,0.00010999,2]
[333465901,1722161436740,-1036.13,0.00010999,2]
[333465902,1722161436751,-1036.13,0.00010999,2]
[333465903,1722161436760,-1036.13,0.00010999,2]
[333465904,1722161436771,-1036.13,0.00010999,2]
[333465905,1722161436780,-1036.13,0.00010999,2]
[333465906,1722161436792,-1036.13,0.00010999,2]
[333465907,1722161436802,-1036.13,0.00010999,2]
[333465908,1722161436813,-1036.13,0.00010999,2]
[333465909,1722161436823,-1036.13,0.00010999,2]
[333465910,1722161436833,-1036.13,0.00010999,2]
[333465911,1722161436843,-1036.13,0.00010999,2]
[333465912,1722161436852,-1036.13,0.00010999,2]
[333465913,1722161436862,-1036.13,0.00010999,2]
[333465914,1722161436874,-1036.13,0.00010999,2]
[333465915,1722161436883,-1036.13,0.00010999,2]
[333465916,1722161436894,-1036.13,0.00010999,2]
[333465917,1722161436905,-1036.13,0.00010999,2]
[333465918,1722161436914,-1036.13,0.00010999,2]
[333465919,1722161436925,-1036.13,0.00010999,2]
[333465920,1722161436941,-1036.13,0.00010999,2]
[333465921,1722161436950,-1036.13,0.00010999,2]
[333465922,1722161436961,-1036.3,0.00010999,2]
[333465923,1722161436972,-500.0,0.00010999,2]
[333465924,1722161436981,-500.0,0.00010999,2]
[333465925,1722161436991,-500.0,0.00010999,2]
[333465926,1722161437001,-500.0,0.00010999,2]
[333465927,1722161437011,-525.22158063,0.00010999,2]
[333465928,1722161437021,-500.0,0.00010999,2]
[333465929,1722161437031,-500.0,0.00010999,2]
[333465930,1722161437041,-199.27,0.00010999,2]
[333465931,1722161437051,-500.0,0.00010999,2]
[333465932,1722161437061,-512.91203262,0.00010999,2]
[333465933,1722161437071,-500.0,0.00010999,2]
[333465934,1722161437081,-632.07602874,0.00010999,2]
[333465935,1722161437090,-523.20810754,0.00010999,2]
[333465936,1722161437100,-507.19097969,0.00010999,2]
[333465937,1722161437109,-500.0,0.00010999,2]
[333465938,1722161437119,-500.0,0.00010999,2]
[333465939,1722161437129,-180.92859779,0.00010999,2]
[333465940,1722161437138,-500.0,0.00010999,2]
[333465941,1722161437148,-500.0,0.00010999,2]
[333465942,1722161437157,-340.38244213,0.00010999,2]
[333465943,1722161437166,-500.0,0.00010999,2]
[333465944,1722161437176,-314.06029581,0.00010999,2]
[333465945,1722161437187,-500.0,0.00010999,2]
[333465946,1722161437197,-250.04104152,0.00010999,2]
[333465947,1722161437207,-182.64,0.00010999,2]
[333465948,1722161437218,-500.0,0.00010999,2]
[333465949,1722161437228,-192.25197854,0.00010999,2]
[333465950,1722161437237,-199.96180077,0.00010999,2]
[333465951,1722161437248,-545.09372681,0.00010999,2]
[333465952,1722161437258,-190.20469783,0.00010999,2]
[333465953,1722161437267,-417.13510929,0.00010999,2]
[333465954,1722161437276,-500.0,0.00010999,2]
[333465955,1722161437286,-500.0,0.00010999,2]
[333465956,1722161437295,-487.7698569,0.00010999,2]
[333465957,1722161437304,-316.39879912,0.00010999,2]
[333465958,1722161437316,-154.92195056,0.00010999,2]
[333465959,1722161437327,-454.25913152,0.00010999,2]
[333465960,1722161437336,-167.58934471,0.00010999,2]
[333465961,1722161437345,-195.4890769,0.00010999,2]
[333465962,1722161437355,-1049.45031214,0.00010999,2]
[333465963,1722161437364,-363.96204734,0.00010999,2]
[333465964,1722161437374,-159.0406849,0.00010999,2]
[333465965,1722161437383,-485.12400383,0.00010999,2]
[333465966,1722161437392,-411.49590119,0.00010999,2]
[333465967,1722161437402,-412.65604189,0.00010999,2]
[333465968,1722161437411,-291.29119994,0.00010999,2]
[333465969,1722161437421,-7570.88133698,0.00010999,2]
[333465970,1722161437432,-209.54219002,0.00010999,2]
[333465971,1722161437441,-160.15475012,0.00010999,2]
[333465972,1722161437451,-155.0,0.00010999,2]
[333465973,1722161437461,-300.41633906,0.00010999,2]
[333465974,1722161437471,-181.61391252,0.00010999,2]
[333465975,1722161437480,-449.02476873,0.00010999,2]
[333465976,1722161437490,-2000.0,0.00010999,2]
[333465977,1722161437500,-200.0,0.00010999,2]
[333465978,1722161437510,-500.0,0.00010999,2]
[333465979,1722161437520,-500.0,0.00010999,2]
[333465980,1722161437530,-339.98557193,0.00010999,2]
[333465981,1722161437539,-798.39971178,0.00010999,2]
[333465982,1722161437549,-5614.54541316,0.00010999,2]
[333465983,1722161437559,-2000.0,0.00010999,2]
[333465984,1722161437568,-200.0,0.00010999,2]
[333465985,1722161437579,-2000.0,0.00010999,2]
[333465986,1722161437589,-200.0,0.00010999,2]
[333465987,1722161437599,-3000.0,0.00010999,2]
[333465988,1722161437609,-5588.91,0.00010999,2]
[333465989,1722161437619,-5588.91,0.00010999,2]
[333465990,1722161437628,-5588.91,0.00010999,2]
[333465991,1722161437638,-5588.91,0.00010999,2]
[333465992,1722161437647,-5588.91,0.00010999,2]
[333465993,1722161437657,-5588.91,0.00010999,2]
[333465994,1722161437668,-5588.91,0.00010999,2]
[333465995,1722161437678,-5588.91,0.00010999,2]
[333465996,1722161437688,-5588.91,0.00010999,2]
[333465997,1722161437697,-5588.91,0.00010999,2]
[333465998,1722161437707,-5588.91,0.00010999,2]
[333465999,1722161437717,-5588.91,0.00010999,2]
[333466000,1722161437727,-5588.91,0.00010999,2]
[333466001,1722161437736,-5588.91,0.00010999,2]
[333466002,1722161437745,-5588.91,0.00010999,2]
[333466003,1722161437754,-5588.91,0.00010999,2]
[333466004,1722161437764,-5588.91,0.00010999,2]
[333466005,1722161437774,-5588.91,0.00010999,2]
[333466006,1722161437783,-5588.91,0.00010999,2]
[333466007,1722161437793,-5588.91,0.00010999,2]
[333466008,1722161437802,-5588.91,0.00010999,2]
[333466009,1722161437812,-5588.91,0.00010999,2]
[333466010,1722161437821,-5588.91,0.00010999,2]
[333466011,1722161437831,-5589.01,0.00010999,2]
[333466012,1722161437841,-420.0,0.00010999,2]
[333466013,1722161437850,-2000.0,0.00010999,2]
[333466014,1722161437859,-200.0,0.00010999,2]
[333466015,1722161437869,-229292.77851628,0.00011,2]
[333466016,1722161437878,-23586.79939388,0.00011,2]
[333466017,1722161437894,-7767.54302045,0.00011,2]
[333466018,1722161437905,-430753.15959796,0.00011,2]
[333466019,1722161437914,-245861.42642525,0.00011,2]
[333466020,1722161437924,-121727.86821396,0.00011,2]
[333466021,1722161437938,-720139.76076349,0.00011,2]
[333466031,1722161438743,-225.95,0.0001099,2]
[333466032,1722161438753,-225.95,0.0001099,2]
[333466033,1722161438763,-225.95,0.0001099,2]
[333466034,1722161438773,-225.95,0.0001099,2]
[333466035,1722161438782,-225.95,0.0001099,2]
[333466036,1722161438792,-225.95,0.0001099,2]
[333466037,1722161438803,-225.95,0.0001099,2]
[333466038,1722161438813,-225.95,0.0001099,2]
[333466039,1722161438825,-225.95,0.0001099,2]
[333466040,1722161438835,-305813.41434725,0.00011,2]
[333466041,1722161438845,-819727.75737932,0.00011,2]
[333466042,1722161438866,-646.08225681,0.00011,2]
[333466043,1722161438878,-1828.64521112,0.00011,2]
[333466044,1722161438890,-28678.38838452,0.00011,2]
[333466045,1722161438905,-1201.4716007,0.00011,2]
[333466046,1722161438917,-13929.74214198,0.00011,2]
[333466047,1722161438936,-326.66,0.00011,2]
[333466059,1722161440811,-124186.24102815,0.00011,2]
[333466060,1722161440823,-2412.95,0.00011,2]
[333466085,1722161443425,-16768.9674393,0.00011,2]
[333466089,1722161443966,-17862.52195067,0.00011,2]
[333466123,1722161446480,-855.65800931,0.00011,2]
[333466125,1722161446491,-4545.31242003,0.00011,2]
[333466128,1722161446516,-2580.0,0.00011,2]
[333466133,1722161446560,-15500.0,0.00011,2]
[333466202,1722161447323,-542.39928832,0.00011,2]
[333466203,1722161447335,-223864.52068619,0.00011,2]
[333466204,1722161447347,-1133.48489036,0.00011,2]
[333466205,1722161447359,-46985.99645751,0.00011,2]
[333466206,1722161447370,-390.67842279,0.00011,2]
[333467521,1722162633959,-589.72,8.219e-05,2]
[333467522,1722162633969,-195.43511878,9.908e-05,2]
[333467523,1722162633979,-277.49975231,9.908e-05,2]
[333467525,1722162633991,-311.24024769,9.908e-05,2]
[333467527,1722162634001,-200.0,9.911e-05,2]
[333467529,1722162634010,-411.26,9.926e-05,2]
[333467530,1722162634019,-359.88074679,0.0001,2]
[333467531,1722162634029,-1250.0,0.0001,2]
[333467532,1722162634039,-589.72,0.00010471,2]
[333467533,1722162634049,-300.0,0.00010499,2]
[333467534,1722162634059,-12805.40907801,0.000105,2]
[333467535,1722162634068,-290.44,0.00010771,2]
[333467536,1722162634078,-299.99,0.00010779,2]
[333467537,1722162634087,-150.0,0.00010779,2]
[333467538,1722162634097,-150.99,0.0001078,2]
[333467539,1722162634106,-875.50932999,0.0001078,2]
[333467540,1722162634118,-1381.95190557,0.0001078,2]
[333467541,1722162634129,-431.18512968,0.0001078,2]
[333467542,1722162634140,-11218.35894992,0.0001078,2]
[333467543,1722162634150,-290.44,0.0001078,2]
[333467544,1722162634159,-290.44,0.0001078,2]
[333467545,1722162634168,-290.44,0.0001078,2]
[333467546,1722162634178,-290.44,0.0001078,2]
[333467547,1722162634187,-290.44,0.0001078,2]
[333467548,1722162634197,-290.44,0.0001078,2]
[333467549,1722162634206,-21893.0,0.00010781,2]
[333467550,1722162634215,-499.99,0.0001079,2]
[333467551,1722162634225,-6046.84,0.0001079,2]
[333467552,1722162634234,-481.14,0.0001079,2]
[333467553,1722162634243,-1648.2538,0.0001079,2]
[333467554,1722162634253,-3754.15867114,0.0001079,2]
[333467555,1722162634264,-3725.14623216,0.0001079,2]
[333467556,1722162634275,-47463.1000967,0.0001079,2]
[333467557,1722162634285,-304.8591,0.0001079,2]
[333467558,1722162634294,-4851.924,0.0001079,2]
[333467559,1722162634304,-9968.8805,0.0001079,2]
[333467560,1722162634313,-965.1498,0.0001079,2]
[333467561,1722162634323,-5540.7447,0.0001079,2]
[333467562,1722162634332,-2910.5872,0.0001079,2]
[333467563,1722162634342,-13587.4363,0.0001079,2]
[333467564,1722162634351,-290.44,0.0001088,2]
[333467565,1722162634360,-290.44,0.0001088,2]
[333467566,1722162634370,-290.44,0.0001088,2]
[333467567,1722162634379,-714.5913,0.0001089,2]
[333467568,1722162634388,-221991.4523,0.0001089,2]
[333467569,1722162634398,-17860.46641865,0.0001089,2]